bitfinex-derivatives/quotes_BTCF0:USTF0_20250620
["timestamp","ask_amount","ask_price","bid_price","bid_amount"]
[1750436311812,0.13,104120.0,104110.0,1.32465845]
[1750436312113,0.7744,104120.0,104110.0,1.59465845]
[1750436312315,0.13,104120.0,104110.0,1.59465845]
[1750436313815,0.3220684,104120.0,104110.0,1.23385845]
[1750436314114,0.6828684,104120.0,104110.0,1.23385845]
[1750436314310,0.3220684,104120.0,104110.0,1.40429845]
[1750436314510,0.6828684,104120.0,104110.0,1.40469845]
[1750436314711,0.6828684,104120.0,104110.0,1.40429845]
[1750436314912,0.6828684,104120.0,104110.0,1.50299189]
[1750436315111,0.7673671,104120.0,104110.0,0.4994723]
[1750436315418,0.8422671,104120.0,104110.0,0.4994723]
[1750436315720,0.8422671,104120.0,104110.0,0.4990723]
[1750436316014,0.8422671,104120.0,104110.0,0.2994723]
[1750436316602,1.39122063,104120.0,104110.0,0.2994723]
[1750436316815,0.89944104,104120.0,104110.0,0.2994723]
[1750436318215,0.89944104,104120.0,104110.0,0.2294723]
[1750436319007,0.27167264,104120.0,104110.0,0.72125189]
[1750436319211,0.27167264,104120.0,104110.0,1.04575189]
[1750436319212,0.8583787,104120.0,104110.0,1.04575189]
[1750436319612,0.2144987,104120.0,104110.0,1.40655189]
[1750436319913,0.13,104120.0,104110.0,1.40655189]
[1750436320214,0.13,104120.0,104110.0,1.70205189]
[1750436320421,0.13,104120.0,104110.0,1.34125189]
[1750436320717,0.13,104120.0,104110.0,1.70165189]
[1750436320915,0.13,104120.0,104110.0,1.70205189]
[1750436321118,0.13,104120.0,104110.0,1.87289189]
[1750436322514,0.3220671,104120.0,104110.0,1.3811123]
[1750436322719,0.3220671,104120.0,104110.0,1.1653723]
[1750436322916,0.4512658,104120.0,104110.0,1.3320123]
[1750436323112,0.3667671,104120.0,104110.0,0.8957723]
[1750436323319,0.8427658,104120.0,104110.0,0.5025723]
[1750436323519,0.8427658,104120.0,104110.0,0.2074723]
[1750436323818,1.39171933,104120.0,104110.0,0.2070723]
[1750436324015,0.89993974,104120.0,104110.0,0.2044723]
[1750436324226,0.89993974,104120.0,104110.0,0.2084723]
[1750436324718,0.89993974,104120.0,104110.0,0.73145189]
[1750436324919,0.89993974,104120.0,104110.0,0.73245189]
[1750436325121,0.89993974,104120.0,104110.0,0.2406723]
[1750436325319,0.89993974,104120.0,104110.0,0.2386723]
[1750436326024,0.89993974,104120.0,104110.0,0.2054723]
[1750436327320,1.39171933,104120.0,104110.0,0.2054723]
[1750436327618,0.89993974,104120.0,104110.0,0.2054723]
[1750436328625,0.70787264,104120.0,104110.0,0.2054723]
[1750436329119,0.98799264,104120.0,104110.0,0.87725189]
[1750436329324,0.98799264,104120.0,104110.0,1.20345189]
[1750436329919,0.95701264,104120.0,104110.0,1.20345189]
[1750436330317,1.31781264,104120.0,104110.0,1.20345189]
[1750436330525,0.95701264,104120.0,104110.0,1.20345189]
[1750436330916,0.95701264,104120.0,104110.0,0.7116723]
[1750436331120,0.95701264,104120.0,104110.0,1.20345189]
[1750436331423,0.91207264,104120.0,104110.0,1.56425189]
[1750436331623,0.13,104120.0,104110.0,1.60935189]
[1750436331824,0.77,104120.0,104110.0,1.60935189]
[1750436332518,0.76976,104120.0,104110.0,1.60935189]
[1750436333119,0.13,104120.0,104110.0,1.60935189]
[1750436333517,0.13,104120.0,104110.0,1.31385189]
[1750436333723,0.13,104120.0,104110.0,0.8220723]
[1750436333918,0.13,104120.0,104110.0,1.31385189]
[1750436334118,0.13,104120.0,104110.0,1.60935189]
[1750436336829,0.13,104120.0,104110.0,1.1175723]
[1750436337028,0.13,104120.0,104110.0,1.51093962]
[1750436338826,0.5833313,104140.0,104130.0,0.2880657]
[1750436338827,0.05744618,104140.0,104130.0,0.2880657]
[1750436339128,0.05744618,104140.0,104130.0,1.95985074]
[1750436339129,0.06,104140.0,104130.0,1.95985074]
[1750436339318,1e-07,104150.0,104140.0,0.1920303]
[1750436339518,1e-07,104150.0,104140.0,2.06495816]
[1750436339724,1e-07,104150.0,104140.0,1.67159084]
[1750436340529,1e-07,104150.0,104140.0,1.74737176]
[1750436341729,1e-07,104150.0,104140.0,1.75137176]
[1750436341915,0.0445,104170.0,104160.0,0.1919934]
[1750436342116,0.2689987,104170.0,104160.0,1.07466145]
[1750436342327,0.2689987,104170.0,104160.0,1.94639609]
[1750436342631,0.2244987,104170.0,104160.0,1.94639609]
[1750436342822,0.2244987,104170.0,104160.0,1.65085749]
[1750436343013,0.14,104170.0,104160.0,1.65085749]
[1750436343415,0.141,104170.0,104160.0,1.65085749]
[1750436344028,0.143,104170.0,104160.0,1.65085749]
[1750436344230,0.143,104170.0,104160.0,1.65734485]
[1750436344623,0.143,104170.0,104160.0,1.95284485]
[1750436345918,0.143,104170.0,104160.0,3.08224089]
[1750436346427,0.143,104170.0,104160.0,2.59104485]
[1750436346627,0.143,104170.0,104160.0,2.59092485]
[1750436347528,0.143,104170.0,104160.0,3.44292089]
[1750436347829,0.001,104180.0,104170.0,0.1919746]
[1750436348029,0.0437,104200.0,104190.0,0.1919377]
[1750436348328,0.2581987,104200.0,104190.0,1.16393374]
[1750436348533,0.13,104200.0,104190.0,1.24843374]
[1750436348830,0.13,104200.0,104190.0,0.7572377]
[1750436349031,0.13,104200.0,104190.0,1.24843374]
[1750436349229,0.1737,104200.0,104190.0,1.24843374]
[1750436349831,0.1787,104200.0,104190.0,1.24943374]
[1750436350032,0.1787,104200.0,104190.0,1.29943374]
[1750436350232,0.135,104200.0,104190.0,1.0182377]
[1750436350430,0.001,104210.0,104200.0,0.1919193]
[1750436350627,0.041,104210.0,104200.0,1.29531534]
[1750436350827,0.041,104210.0,104200.0,1.50657534]
[1750436351028,0.4910987,104220.0,104210.0,0.1919009]
[1750436351231,0.4910987,104220.0,104210.0,0.76002764]
[1750436351232,1.4435034,104220.0,104210.0,0.76002764]
[1750436351732,1.2516187,104220.0,104210.0,0.76002764]
[1750436351935,1.4435012,104220.0,104210.0,0.76002764]
[1750436352122,1.4435012,104220.0,104210.0,0.2688316]
[1750436352328,1.4435012,104220.0,104210.0,0.76002764]
[1750436352528,1.4435012,104220.0,104210.0,0.2074316]
[1750436353129,1.4435012,104220.0,104210.0,0.2104316]
[1750436353334,1.4435012,104220.0,104210.0,0.2124316]
[1750436354338,1.4893012,104220.0,104210.0,0.2124316]
[1750436355936,1.98049724,104220.0,104210.0,0.0205307]
[1750436356135,2.1235415,104220.0,104210.0,0.1969012]
[1750436356331,2.3154535,104220.0,104210.0,0.005]
[1750436356526,1.6749335,104220.0,104210.0,0.005]
[1750436356731,2.7290535,104220.0,104210.0,0.005]
[1750436356937,2.7790535,104220.0,104210.0,0.005]
[1750436357338,2.7790535,104220.0,104210.0,0.003]
[1750436357741,1.68102546,104220.0,104210.0,0.1949009]
[1750436358040,1.63102546,104220.0,104210.0,0.1949009]
[1750436358836,1.63102546,104220.0,104210.0,0.1929009]
[1750436359534,1.63102546,104220.0,104210.0,0.18353908]
[1750436359734,1.63102546,104220.0,104210.0,0.18253908]
[1750436360134,1.63702546,104220.0,104210.0,0.18253908]
[1750436361644,0.99782546,104220.0,104210.0,0.19864148]
[1750436361847,1.63610546,104220.0,104210.0,0.73983752]
[1750436362040,0.5712987,104220.0,104210.0,1.08413752]
[1750436362238,0.53,104220.0,104210.0,1.08413752]
[1750436362737,0.53,104220.0,104210.0,1.44493752]
[1750436362738,0.1692,104220.0,104210.0,1.44493752]
[1750436362932,0.1692,104220.0,104210.0,1.08413752]
[1750436363243,0.1692,104220.0,104210.0,1.16223908]
[1750436363430,0.2536987,104220.0,104210.0,1.16223908]
[1750436363843,0.2476987,104220.0,104210.0,1.16223908]
[1750436364044,0.2476987,104220.0,104210.0,1.16423908]
[1750436364436,0.12,104220.0,104210.0,1.16423908]
[1750436364631,0.12,104220.0,104210.0,1.70863908]
[1750436365143,0.12,104220.0,104210.0,1.71499864]
[1750436365736,0.12,104220.0,104210.0,3.21499864]
[1750436368946,0.68214,104240.0,104230.0,0.191864]
[1750436369143,0.1805987,104240.0,104230.0,0.99456859]
[1750436369444,0.1805987,104240.0,104230.0,1.02890937]
[1750436369937,0.1805987,104240.0,104230.0,1.38970937]
[1750436370145,0.057,104240.0,104230.0,1.38970937]
[1750436370338,0.057,104240.0,104230.0,1.6722311]
[1750436370844,0.057,104240.0,104230.0,1.18103506]
[1750436371035,0.057,104240.0,104230.0,1.6722311]
[1750436371241,0.057,104240.0,104230.0,1.6841711]
[1750436372846,0.057,104240.0,104230.0,0.83217506]
[1750436373035,0.3333443,104240.0,104230.0,1.2783711]
[1750436373345,0.7367443,104240.0,104230.0,1.0583711]
[1750436373647,0.7823443,104240.0,104230.0,0.56717506]
[1750436374149,0.7763443,104240.0,104230.0,0.56817506]
[1750436374661,0.7763443,104240.0,104230.0,0.52447506]
[1750436375639,0.83351606,104240.0,104230.0,0.52447506]
[1750436376343,0.83351606,104240.0,104230.0,0.51199489]
[1750436376546,0.83351606,104240.0,104230.0,0.35444855]
[1750436376743,1.41118157,104240.0,104230.0,0.32444855]
[1750436377143,1.41118157,104240.0,104230.0,0.51631255]
[1750436377449,1.48741059,104240.0,104230.0,0.32444855]
[1750436377952,1.93928259,104240.0,104230.0,0.30844]
[1750436378149,0.1918824,104220.0,104210.0,0.30335215]
[1750436378345,1.46871335,104220.0,104210.0,0.26537785]
[1750436378544,1.55721335,104220.0,104210.0,0.26537785]
[1750436378947,1.55721335,104220.0,104210.0,0.30977785]
[1750436379541,1.55721335,104220.0,104210.0,0.30041619]
[1750436379942,1.55721425,104220.0,104210.0,0.79161223]
[1750436380239,1.51401425,104220.0,104210.0,0.79161223]
[1750436380853,1.51401425,104220.0,104210.0,0.30041619]
[1750436381054,1.51401425,104220.0,104210.0,0.79361223]
[1750436381848,1.51401425,104220.0,104210.0,0.30241619]
[1750436382149,0.1919193,104200.0,104190.0,0.59903599]
[1750436382353,1.45842297,104200.0,104190.0,0.2822956]
[1750436382545,2.05145896,104200.0,104190.0,0.0004]
[1750436382744,0.1919376,104190.0,104180.0,0.2879154]
[1750436383044,0.91349546,104190.0,104180.0,0.4887154]
[1750436383246,0.91349546,104190.0,104180.0,0.4399279]
[1750436383452,0.91349546,104190.0,104180.0,0.4403279]
[1750436384144,1.54717546,104190.0,104180.0,0.4403279]
[1750436384351,1.54717546,104190.0,104180.0,0.4827279]
[1750436384547,1.4899163,104190.0,104180.0,0.4847279]
[1750436384748,0.6642987,104190.0,104180.0,0.4847279]
[1750436384948,0.13,104190.0,104180.0,0.97592394]
[1750436385251,0.13,104190.0,104180.0,1.38222394]
[1750436386955,0.13,104190.0,104180.0,0.8910279]
[1750436387253,0.13,104190.0,104180.0,1.38222394]
[1750436388356,0.13,104190.0,104180.0,1.57419194]
[1750436388558,0.13,104190.0,104180.0,1.86969194]
[1750436389550,0.13,104190.0,104180.0,1.67772394]
[1750436394360,0.15250654,104190.0,104180.0,2.47120394]
[1750436395663,0.11337624,104190.0,104180.0,2.47120394]
[1750436395864,0.0908697,104190.0,104180.0,2.47120394]
[1750436396160,0.0545472,104190.0,104180.0,2.47120394]
[1750436396364,0.001221,104190.0,104180.0,2.47120394]
[1750436396565,1e-07,104190.0,104180.0,2.47120394]
[1750436398562,0.85754136,104220.0,104210.0,0.1919006]
[1750436398765,0.85754136,104220.0,104210.0,0.8674006]
[1750436398766,0.78754136,104220.0,104210.0,0.8674006]
[1750436398969,0.87204006,104220.0,104210.0,1.40329664]
[1750436399170,0.91564006,104220.0,104210.0,1.23329664]
[1750436399364,0.91564006,104220.0,104210.0,0.6974006]
[1750436399666,0.91564006,104220.0,104210.0,0.4974006]
[1750436399865,2.0402361,104220.0,104210.0,0.3055]
[1750436400067,2.18351475,104220.0,104210.0,0.4874006]
[1750436400265,2.18351475,104220.0,104210.0,0.2955]
[1750436400466,2.18351475,104220.0,104210.0,0.2227]
[1750436400667,2.18051475,104220.0,104210.0,0.2227]
[1750436400862,2.65238889,104220.0,104210.0,0.2247]
[1750436401067,2.65238889,104220.0,104210.0,0.1402013]
[1750436402577,2.75798738,104220.0,104210.0,0.1382013]
[1750436402871,2.8342164,104220.0,104210.0,0.1382013]
[1750436403070,2.85668981,104220.0,104210.0,0.1382013]
[1750436403666,0.191919,104200.0,104190.0,0.1923235]
[1750436403978,1.76230245,104200.0,104190.0,0.1923374]
[1750436404177,1.85600245,104200.0,104190.0,0.1923374]
[1750436404366,1.85600245,104200.0,104190.0,0.1919374]
[1750436404566,1.85600245,104200.0,104190.0,0.1923374]
[1750436404966,2.00045653,104200.0,104190.0,0.0004]
[1750436405173,2.65337257,104200.0,104190.0,0.0004]
[1750436405376,3.09531657,104200.0,104190.0,0.0004]
[1750436405767,3.09531657,104200.0,104190.0,0.0024]
[1750436406279,3.03800653,104200.0,104190.0,0.0024]
[1750436406478,3.03800653,104200.0,104190.0,0.0004]
[1750436406682,3.03800653,104200.0,104180.0,0.2879152]
[1750436406683,0.1919373,104190.0,104180.0,0.2879152]
[1750436406974,0.86507962,104190.0,104180.0,0.2399268]
[1750436407173,1.00988518,104190.0,104180.0,0.2399268]
[1750436407375,1.16113101,104190.0,104180.0,0.1919558]
[1750436407572,0.1919558,104180.0,104170.0,0.20991865]
[1750436407772,1.49587812,104180.0,104170.0,0.40911865]
[1750436407974,1.44784363,104180.0,104170.0,0.40951865]
[1750436408173,1.61732602,104180.0,104170.0,0.40951865]
[1750436408966,1.61732602,104180.0,104170.0,0.3923606]
[1750436409175,1.61732602,104180.0,104170.0,0.1923606]
[1750436409476,1.91370111,104180.0,104170.0,0.0004]
[1750436409676,0.1919741,104170.0,104160.0,0.3359625]
[1750436409866,0.8418017,104170.0,104150.0,0.9954026]
[1750436410072,1.2718925,104160.0,104150.0,0.73480336]
[1750436410273,1.4118925,104160.0,104150.0,0.73400336]
[1750436410475,1.4118925,104160.0,104150.0,0.73440336]
[1750436410674,1.4118925,104160.0,104150.0,0.68640156]
[1750436411183,1.4118925,104160.0,104150.0,1.1775976]
[1750436411385,1.4118925,104160.0,104150.0,1.2677976]
[1750436411775,1.4118925,104160.0,104150.0,1.25075365]
[1750436411975,1.4118925,104160.0,104150.0,0.71785761]
[1750436412184,1.4118925,104160.0,104150.0,0.67235761]
[1750436412684,1.4118925,104160.0,104150.0,1.20835365]
[1750436413178,1.4118925,104160.0,104150.0,0.71715761]
[1750436413380,1.4118925,104160.0,104150.0,0.67235761]
[1750436413974,1.4118925,104160.0,104150.0,0.19637111]
[1750436414684,1.4118925,104160.0,104150.0,0.19597111]
[1750436414880,1.4118925,104160.0,104150.0,0.19497111]
[1750436415078,1.4118925,104160.0,104150.0,0.19537111]
[1750436416077,1.4118925,104160.0,104150.0,0.68656715]
[1750436416279,0.5925,104160.0,104150.0,0.68656715]
[1750436416482,0.76692,104160.0,104150.0,0.70359885]
[1750436416671,0.76692,104160.0,104150.0,1.04439885]
[1750436416985,1.3197122,104160.0,104150.0,1.04439885]
[1750436417782,1.3197122,104160.0,104150.0,0.50840281]
[1750436417985,1.4132122,104160.0,104150.0,0.31840281]
[1750436418284,1.4132122,104160.0,104150.0,0.31800281]
[1750436418587,1.4132122,104160.0,104150.0,0.31840281]
[1750436419081,0.7862922,104160.0,104150.0,0.31840281]
[1750436419288,1.4130922,104160.0,104150.0,0.31840281]
[1750436420685,1.4130922,104160.0,104150.0,0.21200281]
[1750436420885,1.4130922,104160.0,104150.0,0.21240281]
[1750436422089,1.4130922,104160.0,104150.0,0.25720281]
[1750436422090,1.4130923,104160.0,104150.0,0.25720281]
[1750436422285,1.4130923,104160.0,104150.0,0.79339885]
[1750436422587,1.3665923,104160.0,104150.0,0.79339885]
[1750436422782,1.3195923,104160.0,104150.0,0.81339885]
[1750436423876,1.3195923,104160.0,104150.0,0.79339885]
[1750436424280,1.3667923,104160.0,104150.0,0.79339885]
[1750436424584,1.3667923,104160.0,104150.0,0.25720281]
[1750436424785,1.4132923,104160.0,104150.0,0.25680281]
[1750436424979,1.4132923,104160.0,104150.0,0.25720281]
[1750436425179,1.4132923,104160.0,104150.0,0.25680281]
[1750436425584,1.4132923,104160.0,104150.0,0.25720281]
[1750436426090,1.4132923,104160.0,104150.0,0.06519181]
[1750436426091,1.90448834,104160.0,104150.0,0.06519181]
[1750436426381,2.30703134,104160.0,104150.0,0.00336011]
[1750436426582,2.24970374,104160.0,104150.0,0.00336011]
[1750436426778,2.24970374,104160.0,104150.0,0.00296011]
[1750436426978,2.24970374,104160.0,104150.0,0.00336011]
[1750436427388,2.32593276,104160.0,104150.0,0.00336011]
[1750436427881,2.32593276,104160.0,104150.0,0.00296011]
[1750436428485,2.32593276,104160.0,104150.0,0.00336011]
[1750436428688,2.33473672,104160.0,104150.0,0.00336011]
[1750436428887,2.32473672,104160.0,104150.0,0.00336011]
[1750436429390,2.32480523,104160.0,104150.0,0.00336011]
[1750436429687,2.81600127,104160.0,104150.0,0.00336011]
[1750436430189,2.14745581,104160.0,104150.0,0.00336011]
[1750436433683,2.14745581,104160.0,104150.0,0.19537081]
[1750436434186,1.32863181,104160.0,104150.0,0.19537081]
[1750436434392,1.37057577,104160.0,104150.0,0.68656685]
[1750436434697,1.35158297,104160.0,104150.0,0.77826685]
[1750436434883,0.23049613,104160.0,104150.0,0.77826685]
[1750436435086,1.41012833,104160.0,104150.0,0.77826685]
[1750436435286,1.41012833,104160.0,104150.0,0.78026685]
[1750436436084,1.41012833,104160.0,104150.0,0.28907081]
[1750436436790,1.41012833,104160.0,104150.0,0.78026685]
[1750436436990,1.21813613,104160.0,104150.0,0.78026685]
[1750436437194,1.21813613,104160.0,104150.0,0.85026685]
[1750436437790,1.41012833,104160.0,104150.0,0.85026685]
[1750436438593,1.41012833,104160.0,104150.0,0.35907081]
[1750436438791,1.41021678,104160.0,104150.0,0.28867081]
[1750436439092,1.41021678,104160.0,104150.0,0.28907081]
[1750436439288,1.21822458,104160.0,104150.0,0.78026685]
[1750436439493,1.21823638,104160.0,104150.0,0.78026685]
[1750436439893,1.07504498,104160.0,104150.0,0.87026685]
[1750436440090,0.71424505,104160.0,104150.0,0.87026685]
[1750436440290,0.90623735,104160.0,104150.0,0.87026685]
[1750436441092,1.26703735,104160.0,104150.0,0.87026685]
[1750436441288,0.90623735,104160.0,104150.0,0.87026685]
[1750436442204,0.08740505,104160.0,104150.0,0.87026685]
[1750436442499,0.71416505,104160.0,104150.0,1.45106685]
[1750436442697,0.90615735,104160.0,104150.0,1.09026685]
[1750436443391,0.90615735,104160.0,104150.0,0.59907081]
[1750436443592,0.90615735,104160.0,104150.0,1.09026685]
[1750436443890,0.71416505,104160.0,104150.0,1.09026685]
[1750436444096,0.71416505,104160.0,104150.0,1.45106685]
[1750436444491,0.90615735,104160.0,104150.0,1.45106685]
[1750436444699,0.71416505,104160.0,104150.0,1.45106685]
[1750436446499,0.08740505,104160.0,104150.0,1.45106685]
[1750436446695,0.03,104160.0,104150.0,1.60882685]
[1750436447897,0.2219923,104160.0,104150.0,1.24802685]
[1750436448091,0.2219923,104160.0,104150.0,1.09026685]
[1750436448287,0.2219923,104160.0,104150.0,0.59867081]
[1750436448288,0.5827923,104160.0,104150.0,0.59867081]
[1750436448491,0.5827923,104160.0,104150.0,0.59907081]
[1750436448687,0.5827923,104160.0,104150.0,0.59867081]
[1750436448892,0.5827923,104160.0,104150.0,0.59907081]
[1750436449798,0.5827923,104160.0,104150.0,0.59867081]
[1750436449998,0.5827923,104160.0,104150.0,0.59907081]
[1750436450194,0.5827923,104160.0,104150.0,0.59867081]
[1750436450396,0.5827923,104160.0,104150.0,0.39907081]
[1750436450900,0.68879735,104160.0,104150.0,0.28907081]
[1750436452201,1.17999339,104160.0,104150.0,0.28907081]
[1750436452401,1.17999339,104160.0,104150.0,0.24167081]
[1750436452702,0.68879735,104160.0,104150.0,0.24127081]
[1750436452906,0.68879735,104160.0,104150.0,0.24167081]
[1750436453604,1.31535735,104160.0,104150.0,0.24167081]
[1750436454295,1.31535735,104160.0,104150.0,0.00536011]
[1750436454296,1.36365735,104160.0,104150.0,0.00536011]
[1750436454496,1.36365735,104160.0,104150.0,0.19737091]
[1750436454792,1.36365735,104160.0,104150.0,0.00536011]
[1750436454793,1.94131553,104160.0,104150.0,0.00536011]
[1750436455002,2.03761306,104160.0,104150.0,0.00536011]
[1750436455197,2.03761306,104160.0,104150.0,0.00496011]
[1750436455395,2.22963706,104160.0,104150.0,0.00536011]
[1750436455597,0.1920292,104140.0,104130.0,0.0465]
[1750436455797,0.1920476,104130.0,104120.0,0.38505908]
[1750436456104,0.7303302,104130.0,104120.0,0.36466038]
[1750436456302,0.7303302,104130.0,104120.0,0.55672648]
[1750436456494,0.7303302,104130.0,104120.0,0.55712648]
[1750436456691,0.7749302,104130.0,104120.0,0.55672648]
[1750436456899,0.7749302,104130.0,104120.0,0.55712648]
[1750436457803,0.7749302,104130.0,104120.0,0.56012648]
[1750436458005,0.7749302,104130.0,104120.0,0.05006038]
[1750436458199,0.7749302,104130.0,104120.0,0.24172638]
[1750436458200,0.8184302,104130.0,104120.0,0.24172638]
[1750436458399,0.8184302,104130.0,104120.0,0.24212638]
[1750436458600,0.8184302,104130.0,104120.0,0.24412638]
[1750436461310,0.6263826,104130.0,104120.0,0.73532242]
[1750436461505,1.3568102,104130.0,104120.0,0.78072242]
[1750436461709,0.1774826,104130.0,104120.0,0.78072242]
[1750436461897,0.1774826,104130.0,104120.0,0.81072242]
[1750436461898,0.9385676,104130.0,104120.0,0.81072242]
[1750436462213,0.74652,104130.0,104120.0,0.81072242]
[1750436462504,1.2993676,104130.0,104120.0,0.31952648]
[1750436462707,1.3568502,104130.0,104120.0,0.24372648]
[1750436462895,1.3568502,104130.0,104120.0,0.19842648]
[1750436462896,1.4482502,104130.0,104120.0,0.19842648]
[1750436463309,1.4482502,104130.0,104120.0,0.19802648]
[1750436463510,1.4482502,104130.0,104120.0,0.19842648]
[1750436463699,1.3907676,104130.0,104120.0,0.19842648]
[1750436464608,1.3907676,104130.0,104120.0,0.68962252]
[1750436464801,1.2993676,104130.0,104120.0,0.78242252]
[1750436465111,0.9385676,104130.0,104120.0,0.79242252]
[1750436465407,0.74648,104130.0,104120.0,0.99242252]
[1750436466310,0.12,104130.0,104120.0,1.84441856]
[1750436466511,0.74648,104130.0,104120.0,1.35322252]
[1750436466808,0.12,104130.0,104120.0,1.35322252]
[1750436467210,0.12,104130.0,104120.0,1.21190648]
[1750436467408,0.12,104130.0,104120.0,1.70310252]
[1750436468503,0.12,104130.0,104120.0,2.19429856]
[1750436469106,0.12,104130.0,104120.0,2.82073856]
[1750436469303,0.12,104130.0,104120.0,2.83781552]
[1750436471408,0.12,104130.0,104120.0,3.13331552]
[1750436472010,0.4808,104130.0,104120.0,0.30916038]
[1750436472220,1.2992076,104130.0,104120.0,0.29082648]
[1750436472414,1.2992076,104130.0,104120.0,0.29122648]
[1750436472610,0.9384076,104130.0,104120.0,0.78242252]
[1750436472819,0.9384076,104130.0,104120.0,0.78202252]
[1750436472820,1.2992076,104130.0,104120.0,0.78202252]
[1750436473009,1.2992076,104130.0,104120.0,0.29122648]
[1750436474819,1.2992076,104130.0,104120.0,0.78242252]
[1750436476524,1.2992076,104130.0,104120.0,0.29122648]
[1750436476906,1.3443076,104130.0,104120.0,0.29122648]
[1750436477105,1.3443076,104130.0,104120.0,0.19842648]
[1750436477322,1.53177289,104130.0,104120.0,0.19802648]
[1750436477510,1.53177289,104130.0,104120.0,0.19842648]
[1750436478819,1.58901899,104130.0,104120.0,0.19842598]
[1750436479223,2.08021503,104130.0,104120.0,0.00636038]
[1750436479730,2.08021503,104130.0,104120.0,0.00596038]
[1750436480125,2.08021503,104130.0,104120.0,0.19802608]
[1750436480625,2.08021503,104130.0,104120.0,0.19842608]
[1750436481017,2.08021503,104130.0,104120.0,0.00636038]
[1750436482227,1.89378692,104130.0,104120.0,0.00636038]
[1750436482417,1.95378692,104130.0,104120.0,0.00636038]
[1750436482617,1.95478692,104130.0,104120.0,0.19642598]
[1750436482818,1.46359088,104130.0,104120.0,0.19642598]
[1750436483018,1.95478692,104130.0,104120.0,0.19642598]
[1750436483220,1.95478692,104130.0,104120.0,0.00436038]
[1750436483420,1.89754082,104130.0,104120.0,0.00436038]
[1750436484327,1.89754082,104130.0,104120.0,0.00136038]
[1750436484525,1.89954082,104130.0,104120.0,0.00136038]
[1750436484725,1.27318082,104130.0,104120.0,0.00136038]
[1750436485027,1.89938082,104130.0,104120.0,0.00136038]
[1750436485931,0.78198478,104130.0,104120.0,0.19342618]
[1750436486225,0.62440233,104130.0,104120.0,0.31342618]
[1750436486427,0.6892,104130.0,104120.0,1.25692222]
[1750436486924,0.063,104130.0,104120.0,1.27434817]
[1750436487126,0.063,104130.0,104120.0,1.96554421]
[1750436487720,0.061,104130.0,104120.0,1.96754421]
[1750436487928,0.061,104130.0,104120.0,1.47634817]
[1750436488328,0.2530474,104130.0,104120.0,1.63390817]
[1750436488631,0.061,104130.0,104120.0,1.63390817]
[1750436488821,0.061,104130.0,104120.0,1.63350817]
[1750436489026,0.06,104130.0,104120.0,1.63390817]
[1750436490132,0.06,104130.0,104120.0,1.14371213]
[1750436490333,0.06,104130.0,104120.0,1.63490817]
[1750436491734,0.2520474,104130.0,104120.0,1.63490817]
[1750436492432,0.06,104130.0,104120.0,1.63490817]
[1750436492936,0.06,104130.0,104120.0,2.12610421]
[1750436495336,0.06,104130.0,104120.0,2.31818421]
[1750436496133,0.06,104130.0,104120.0,2.12610421]
[1750436496834,0.6739227,104150.0,104140.0,0.1920292]
[1750436497134,0.12,104150.0,104140.0,1.66883794]
[1750436497334,0.3120108,104150.0,104140.0,1.82883794]
[1750436497544,0.3120108,104150.0,104140.0,1.92663794]
[1750436497731,0.12,104150.0,104140.0,1.92663794]
[1750436498337,0.122,104150.0,104140.0,2.08415794]
[1750436498536,0.123,104150.0,104140.0,2.08415794]
[1750436499438,0.12,104150.0,104140.0,2.08615794]
[1750436499736,0.12,104150.0,104140.0,2.08715794]
[1750436500824,0.12,104150.0,104140.0,2.38265794]
[1750436503941,0.12,104150.0,104140.0,2.39024945]
[1750436504941,0.12,104150.0,104140.0,2.29218287]
[1750436507237,0.12,104150.0,104140.0,2.52461341]
[1750436507441,0.3120106,104150.0,104140.0,2.91774287]
[1750436507634,0.12,104150.0,104140.0,2.91774287]
[1750436507835,0.12,104150.0,104140.0,2.91814287]
[1750436507836,0.3120106,104150.0,104140.0,2.91814287]
[1750436508240,0.3120106,104150.0,104140.0,2.13506287]
[1750436508439,0.3120106,104150.0,104140.0,2.12747136]
[1750436508742,0.3120106,104150.0,104140.0,1.7343419]
[1750436508949,0.9374906,104150.0,104140.0,1.2450324]
[1750436509153,1.0362906,104150.0,104140.0,1.2450324]
[1750436509343,1.0362906,104150.0,104140.0,1.2446324]
[1750436509542,1.0362906,104150.0,104140.0,1.2450324]
[1750436510845,1.0362906,104150.0,104140.0,1.2430324]
[1750436511549,1.0362906,104150.0,104140.0,1.2420324]
[1750436512743,1.0362906,104150.0,104140.0,1.37278305]
[1750436514253,1.0362906,104150.0,104140.0,1.14238305]
[1750436514448,1.0362906,104150.0,104140.0,0.6512324]
[1750436515151,1.0362906,104150.0,104140.0,1.14278305]
[1750436515551,1.09362764,104150.0,104140.0,1.14278305]
[1750436515753,1.09362764,104150.0,104140.0,0.6512324]
[1750436516252,1.58517829,104150.0,104140.0,0.6512324]
[1750436516554,1.94597829,104150.0,104140.0,0.2904324]
[1750436516746,1.94597829,104150.0,104140.0,0.2900324]
[1750436516945,1.94597829,104150.0,104140.0,0.2424291]
[1750436517147,1.94597829,104150.0,104140.0,0.1920291]
[1750436517547,1.45442764,104150.0,104140.0,0.1924291]
[1750436517852,1.45442764,104150.0,104140.0,0.0004]
[1750436518044,2.03264611,104150.0,104140.0,0.1924292]
[1750436518651,1.54109546,104150.0,104140.0,0.1924292]
[1750436519352,1.18005546,104150.0,104140.0,0.1924292]
[1750436519743,1.54085546,104150.0,104140.0,0.1924292]
[1750436520047,1.54085546,104150.0,104140.0,0.0004]
[1750436520651,0.1920291,104140.0,104130.0,0.3608]
[1750436520844,0.95671969,104140.0,104130.0,0.3808]
[1750436521347,1.10046922,104140.0,104130.0,0.3808]
[1750436521554,1.46126922,104140.0,104130.0,0.02]
[1750436521753,1.40392928,104140.0,104130.0,0.021]
[1750436521944,1.40392928,104140.0,104130.0,0.003]
[1750436521945,1.64741742,104140.0,104130.0,0.003]
[1750436522546,0.1920473,104130.0,104120.0,0.01838633]
[1750436522743,1.88371795,104130.0,104120.0,0.01838633]
[1750436522954,1.72898899,104130.0,104120.0,0.01878633]
[1750436523146,1.23337122,104130.0,104120.0,0.21085203]
[1750436523342,1.59417122,104130.0,104120.0,0.01878633]
[1750436523747,1.23337122,104130.0,104120.0,0.21085203]
[1750436524149,1.23337122,104130.0,104120.0,0.01878633]
[1750436524349,1.02373822,104130.0,104120.0,0.21085203]
[1750436524648,1.21578552,104130.0,104120.0,0.21185203]
[1750436524845,0.59066552,104130.0,104120.0,0.21185203]
[1750436525057,1.21578552,104130.0,104120.0,0.25735203]
[1750436525355,1.21578552,104130.0,104120.0,0.25835203]
[1750436525855,1.22362196,104130.0,104120.0,0.25835203]
[1750436526057,1.58442196,104130.0,104120.0,0.25835203]
[1750436527048,1.22362196,104130.0,104120.0,0.25835203]